bitfinex/quotes_SOLUSD_20241013
["timestamp","ask_amount","ask_price","bid_price","bid_amount"]
[1728837416870,23.776884,146.1,146.04,6.8473]
[1728837417073,23.776884,146.08,146.04,6.8473]
[1728837420295,23.776884,146.08,146.02,17.1204]
[1728837420505,6.8475,146.04,146.0,6.8492]
[1728837420795,23.776884,146.04,146.01,6.8488]
[1728837421092,23.776884,146.09,146.01,17.1215]
[1728837421296,6.8459,146.08,146.03,6.8476]
[1728837421484,23.776884,146.07,146.03,6.8476]
[1728837421673,6.8447,146.1,146.04,1.36941242]
[1728837421880,22.274,146.11,146.02,11.38144627]
[1728837422080,6.8447,146.1,146.05,23.9638]
[1728837422469,6.8451,146.09,146.05,23.9638]
[1728837422784,6.8451,146.09,146.05,17.1169]
[1728837423472,22.274,146.11,146.06,6.8463]
[1728837423678,22.274,146.11,146.05,17.1169]
[1728837423679,6.8443,146.11,146.07,6.8459]
[1728837424497,6.8443,146.11,146.06,6.8463]
[1728837424870,23.776884,146.14,146.06,6.8463]
[1728837425071,6.8447,146.1,146.06,6.8463]
[1728837425696,6.8436,146.13,146.09,6.845]
[1728837425902,21.7918,146.15,146.06,11.38144627]
[1728837425903,28.6345,146.15,146.1,8.21354471]
[1728837426084,28.6341,146.15,146.1,8.21354471]
[1728837426400,6.8428,146.14,146.09,23.9569]
[1728837426987,28.6341,146.15,146.1,6.8444]
[1728837427483,6.8419,146.16,146.11,6.8441]
[1728837428505,6.8422,146.15,146.11,6.8441]
[1728837429102,6.8418,146.16,146.11,6.8441]
[1728837429399,23.776884,146.15,146.12,6.8435]
[1728837430490,23.776884,146.15,146.11,6.844]
[1728837431484,6.8414,146.17,146.13,6.8429]
[1728837431798,6.8412,146.18,146.13,6.8429]
[1728837433292,6.8415,146.17,146.13,6.8429]
[1728837434178,23.776884,146.18,146.11,17.1095]
[1728837435206,6.8419,146.16,146.11,23.9533]
[1728837436204,23.776884,146.15,146.11,23.9533]
[1728837436506,6.8423,146.15,146.11,23.9533]
[1728837439005,23.776884,146.18,146.08,17.1134]
[1728837439188,23.776884,146.18,146.05,34.2344]
[1728837439189,6.8446,146.1,146.05,34.2344]
[1728837439395,6.8446,146.1,146.06,6.8463]
[1728837439620,22.2453,146.17,146.05,17.1166]
[1728837439912,22.2453,146.17,146.01,6.0154]
[1728837439913,23.776884,146.08,146.0,15.9353]
[1728837440214,23.776884,146.08,146.01,1.36944631]
[1728837440414,6.8461,146.07,146.02,6.8481]
[1728837441602,30.622484,146.08,146.03,8.21698215]
[1728837442193,30.622484,146.08,146.04,6.8473]
[1728837442402,22.2453,146.14,146.05,1.36936755]
[1728837442597,22.2453,146.14,146.01,34.244]
[1728837442598,6.8446,146.11,146.07,6.846]
[1728837443394,22.2453,146.14,146.08,6.8454]
[1728837443594,6.8428,146.14,146.09,6.845]
[1728837444197,6.8428,146.14,146.1,1.36879161]
[1728837444421,6.8428,146.14,146.09,6.845]
[1728837444892,16.1647,146.18,146.1,1.3688059]
[1728837445102,6.8418,146.16,146.11,6.844]
[1728837445296,6.0806,146.19,146.16,6.8416]
[1728837445502,12.921,146.19,146.15,17.1054]
[1728837445716,6.8409,146.18,146.14,6.8426]
[1728837447715,6.8409,146.18,146.14,6.8426]
[1728837447912,7.6676983,146.2,146.15,6.8419]
[1728837449211,23.776884,146.19,146.14,17.1062]
[1728837449399,30.617684,146.19,146.14,23.9488]
[1728837450195,6.8409,146.18,146.14,17.1062]
[1728837450395,6.8404,146.19,146.15,6.8422]
[1728837450597,7.6679983,146.2,146.15,6.8422]
[1728837450997,0.8276983,146.2,146.14,17.1062]
[1728837451215,6.8404,146.19,146.14,23.9485]
[1728837451716,6.841,146.18,146.14,17.1062]
[1728837452094,6.8424,146.15,146.11,17.1099]
[1728837452410,6.8417,146.17,146.12,6.8434]
[1728837452600,6.8418,146.16,146.12,6.8434]
[1728837452826,6.8424,146.15,146.11,17.1099]
[1728837453029,6.8418,146.16,146.11,23.9539]
[1728837453745,6.8431,146.14,146.09,6.845]
[1728837454049,23.776884,146.19,146.1,6.8445]
[1728837454224,23.776884,146.14,146.1,6.8445]
[1728837454632,23.776884,146.14,146.08,17.1136]
[1728837454828,6.8435,146.13,146.08,23.959]
[1728837455948,6.8433,146.13,146.08,23.9587]
[1728837456636,30.619784,146.14,146.1,6.8442]
[1728837456837,30.619784,146.14,146.09,6.845]
[1728837457731,6.8433,146.13,146.09,6.845]
[1728837458633,6.844,146.12,146.08,17.1136]
[1728837458950,23.776884,146.11,146.06,15.2977]
[1728837459120,6.8444,146.11,146.06,6.8461]
[1728837459325,6.8444,146.11,146.07,6.8459]
[1728837459539,29.937484,146.14,146.06,6.8464]
[1728837459732,6.8442,146.11,146.06,6.8464]
[1728837461531,46.574184,146.14,146.06,6.8464]
[1728837461731,46.574184,146.14,146.05,23.9639]
[1728837461732,6.8449,146.1,146.05,23.9639]
[1728837462126,63.681484,146.14,146.03,15.2977]
[1728837462127,63.681484,146.14,146.04,6.8472]
[1728837462327,6.8452,146.09,146.04,8.21652431]
[1728837462853,6.8457,146.08,146.03,22.1455]
[1728837463053,6.8457,146.08,146.04,6.8472]
[1728837463429,6.8457,146.08,146.04,8.21647785]
[1728837463830,6.8457,146.08,146.04,6.8472]
[1728837464028,17.1097,146.12,146.02,17.1203]
[1728837464249,6.8466,146.06,146.02,17.1203]
[1728837464853,6.847,146.05,146.0,6.8492]
[1728837465733,6.8474,146.04,146.0,6.8492]
[1728837465930,6.8474,146.04,145.99,17.1237]
[1728837466130,6.8483,146.03,145.99,17.1237]
[1728837466356,6.8474,146.04,146.0,1.3697855]
[1728837466555,6.8474,146.04,145.99,17.1237]
[1728837467435,6.8474,146.04,146.0,8.21889899]
[1728837468362,6.8474,146.04,145.99,23.9734]
[1728837470070,23.776884,146.03,145.99,23.9734]
[1728837472461,30.624784,146.03,145.99,23.9734]
[1728837479541,30.624784,146.03,145.99,17.1237]
[1728837480665,6.8485,146.02,145.98,6.8501]
[1728837481071,30.624884,146.03,145.99,1.36986437]
[1728837481572,30.624884,146.03,145.99,8.21956437]
[1728837481757,30.624884,146.03,145.99,6.8497]
[1728837482872,6.8484,146.02,145.97,6.8503]
[1728837483077,6.8484,146.02,145.98,6.85]
[1728837483255,23.776884,146.03,145.99,17.1242]
[1728837484376,30.624784,146.03,145.99,23.9739]
[1728837485268,30.624784,146.03,145.99,17.1242]
[1728837485472,23.776884,146.03,145.94,11.37464538]
[1728837485673,23.776884,146.03,145.97,6.8506]
[1728837485882,6.8489,146.01,145.97,6.8506]
[1728837487798,6.8489,146.01,145.97,8.22053825]
[1728837488086,23.776884,146.03,145.97,1.36993825]
[1728837488278,30.624884,146.03,145.98,6.8498]
[1728837491489,6.8483,146.02,145.98,6.8498]
[1728837498067,6.8475,146.04,145.99,1.36982667]
[1728837498299,6.8475,146.04,146.0,6.849]
[1728837499489,6.8465,146.06,146.01,8.21817809]
[1728837499794,6.8465,146.06,146.02,6.8481]
[1728837500376,29.6434,146.07,146.03,8.21731369]
[1728837500580,6.8461,146.07,146.03,6.8478]
[1728837500884,6.8461,146.07,146.03,8.21723238]
[1728837502101,15.4291,146.1,146.03,1.36943238]
[1728837502397,15.4291,146.1,146.04,17.118]
[1728837502688,6.8447,146.1,146.05,6.8468]
[1728837502891,6.8452,146.09,146.05,6.8468]
[1728837503273,6.4575,146.11,146.04,23.9653]
[1728837503472,6.846,146.07,146.01,17.1217]
[1728837503672,6.8456,146.08,146.03,6.8478]
[1728837503986,6.8456,146.08,146.04,1.36929945]
[1728837504189,6.8456,146.08,146.03,6.8478]
[1728837504894,6.8456,146.08,146.04,1.36930047]
[1728837505089,30.621784,146.1,146.04,8.21660047]
[1728837505408,30.621784,146.1,146.05,6.8468]
[1728837505767,23.776884,146.1,146.05,6.8468]
[1728837505972,6.8451,146.09,146.03,17.1191]
[1728837506289,23.776884,146.1,146.0,17.1229]
[1728837506490,6.8475,146.04,146.0,23.9721]
[1728837506873,32.5423,146.09,145.99,6.8493]
[1728837507081,6.848,146.03,145.99,6.8493]
[1728837507286,6.848,146.03,145.97,23.4372]
[1728837507601,6.848,146.03,145.98,22.8536]
[1728837508474,6.8484,146.02,145.97,23.9767]
[1728837508780,6.8484,146.02,145.98,8.21994433]
[1728837510276,17.1155,146.07,145.99,6.8497]
[1728837510600,30.625184,146.03,145.98,8.21973616]
[1728837511978,30.625184,146.03,145.98,6.8501]
[1728837512180,30.625184,146.03,145.99,1.36975699]
[1728837512400,23.776884,146.03,145.99,8.21915699]
[1728837513104,23.776884,146.03,145.99,6.8494]
[1728837513901,30.624884,146.03,145.99,6.8494]
[1728837514110,6.848,146.03,145.99,6.8494]
[1728837514786,23.776884,146.06,145.99,6.8494]
[1728837514988,6.8476,146.04,145.99,6.8494]
[1728837518903,23.776884,146.06,146.0,1.36962792]
[1728837519080,6.847,146.05,146.01,6.8488]
[1728837519287,6.847,146.05,146.02,1.36951418]
[1728837519486,6.847,146.05,146.01,6.8488]
[1728837520583,15.4291,146.09,146.02,8.2175443]
[1728837520788,6.8463,146.07,146.02,8.2175443]
[1728837522298,6.8463,146.07,146.02,6.848]
[1728837522499,15.4291,146.09,146.03,1.36943351]
[1728837522500,6.8465,146.06,146.03,1.36943351]
[1728837524207,6.8465,146.06,146.02,6.848]
[1728837525303,6.8465,146.06,146.03,1.36943095]
[1728837526003,6.8465,146.06,146.02,6.848]
[1728837526516,23.776884,146.08,146.01,23.9701]
[1728837526714,6.8466,146.06,146.01,23.9701]
[1728837526913,6.8466,146.06,146.02,1.36943022]
[1728837527430,6.8447,146.1,146.05,6.8466]
[1728837527722,6.4575,146.11,146.05,6.8466]
[1728837527723,6.8444,146.11,146.07,17.1147]
[1728837527953,15.7223,146.12,146.07,17.1147]
[1728837527954,6.8437,146.12,146.08,1.36896677]
[1728837528108,6.8437,146.12,146.08,8.21426677]
[1728837528427,23.2453,146.15,146.08,8.21426677]
[1728837528614,6.8433,146.13,146.08,8.21426677]
[1728837529010,23.776884,146.12,146.08,8.21426677]
[1728837529321,6.8433,146.13,146.08,8.21426677]
[1728837529710,12.9815,146.15,146.1,6.8444]
[1728837530034,22.5644,146.16,146.12,6.8436]
[1728837530213,6.8421,146.16,146.12,6.8436]
[1728837530617,6.8421,146.16,146.11,1.36863168]
[1728837530926,6.8428,146.14,146.1,6.8445]
[1728837531117,6.8434,146.13,146.09,17.1121]
[1728837532203,6.8428,146.14,146.1,1.36874459]
[1728837535122,6.8428,146.14,146.09,23.9571]
[1728837535831,6.8432,146.13,146.09,17.1121]
[1728837536031,6.8438,146.12,146.08,6.8454]
[1728837536339,6.8438,146.12,146.09,1.36885598]
[1728837536630,6.8438,146.12,146.08,6.8454]
[1728837538028,6.8432,146.13,146.08,6.8454]
[1728837539920,6.8432,146.13,146.05,27.09274538]
[1728837539921,6.8432,146.13,146.09,1.36877938]
[1728837540128,6.8432,146.13,146.09,6.8449]
[1728837541344,6.8432,146.13,146.09,8.21367802]
[1728837541645,6.8432,146.13,146.09,6.8449]
[1728837541935,6.8437,146.12,146.08,23.9588]
[1728837542116,6.8433,146.13,146.09,6.845]
[1728837544136,6.8433,146.13,146.1,1.36873863]
[1728837544848,6.8433,146.13,146.09,6.845]
[1728837545057,23.776884,146.18,146.1,1.3687375]
[1728837545230,6.8423,146.15,146.11,6.844]
[1728837546674,6.8423,146.15,146.1,23.9552]
[1728837547360,6.8428,146.14,146.1,23.9552]
[1728837547661,6.8428,146.14,146.11,1.36865211]
[1728837551956,6.8432,146.13,146.09,6.845]
[1728837554561,40.879584,146.18,146.07,17.1145]
[1728837554562,6.8438,146.12,146.07,17.1145]
[1728837554865,6.8438,146.12,146.07,23.9604]
[1728837555663,6.8438,146.12,146.08,6.8454]
[1728837555956,6.8438,146.12,146.09,1.36876279]
[1728837556634,6.8438,146.12,146.08,6.8454]
[1728837556839,40.883984,146.14,146.06,6.8461]
[1728837557050,6.8447,146.1,146.06,6.8461]
[1728837559069,6.8447,146.1,146.07,1.36897782]
[1728837559260,6.8442,146.11,146.07,1.36897782]
[1728837560637,6.8442,146.11,146.06,6.8461]
[1728837561067,6.8438,146.12,146.07,1.36897464]
[1728837561363,6.8438,146.12,146.08,6.8455]
[1728837561746,13.4723,146.14,146.09,8.21349067]
[1728837561949,6.843,146.14,146.1,6.8445]
[1728837562667,6.8423,146.15,146.11,8.21280967]
[1728837563271,6.6293,146.18,146.12,6.8434]
[1728837563772,6.841,146.18,146.13,8.21164949]
[1728837563968,16.0504,146.19,146.13,1.36854949]
[1728837564174,22.8909,146.19,146.14,6.8424]
[1728837564351,22.8909,146.19,146.15,1.36823394]
[1728837564752,6.8405,146.19,146.15,1.36823394]
[1728837564966,0.8276983,146.2,146.15,1.36823394]
[1728837565169,0.8276983,146.2,146.15,6.8418]
[1728837565525,6.8404,146.19,146.15,6.8418]
[1728837565872,0.8276983,146.2,146.15,6.8418]
[1728837566184,7.6676983,146.2,146.15,6.8418]
[1728837567018,0.8276983,146.2,146.18,6.8408]
[1728837567310,0.8276983,146.2,146.18,1.36801859]
[1728837568901,0.8276983,146.2,146.17,6.8412]
[1728837569809,0.8276983,146.2,146.16,17.1037]
[1728837570110,7.6675983,146.2,146.16,23.9454]
[1728837572316,7.6675983,146.2,146.17,1.36807534]
[1728837573007,0.8276983,146.2,146.17,1.36807534]
[1728837573718,0.8276983,146.2,146.16,23.9454]
[1728837575504,0.8276983,146.2,146.15,6.8421]
[1728837575811,6.8405,146.19,146.15,6.8422]
[1728837576390,0.8276983,146.2,146.15,6.8422]
[1728837576724,7.6676983,146.2,146.16,1.36817416]
[1728837577202,7.6676983,146.2,146.15,6.8422]
[1728837577816,7.6676983,146.2,146.14,20.0]
[1728837577817,23.776884,146.19,146.13,17.1076]
[1728837578498,6.8412,146.18,146.13,23.9507]
[1728837578897,6.8413,146.17,146.13,17.1076]
[1728837579088,6.8422,146.16,146.11,6.8441]
[1728837579509,6.8422,146.16,146.1,17.1111]
[1728837579510,6.8426,146.15,146.1,23.9557]
[1728837579678,6.8426,146.15,146.1,17.1111]
[1728837579877,6.8426,146.15,146.11,6.8441]
[1728837580592,6.8426,146.15,146.1,23.9555]
[1728837581183,6.8428,146.14,146.1,23.9555]
[1728837581380,6.8432,146.13,146.07,32.4718]
[1728837581786,23.776884,146.16,146.09,11.37464538]
[1728837581974,23.776884,146.16,146.1,1.36856462]
[1728837582302,23.776884,146.16,146.12,23.952]
[1728837582509,23.776884,146.18,146.12,23.952]
[1728837582673,30.618184,146.18,146.12,23.952]
[1728837583002,6.8416,146.17,146.12,23.952]
[1728837584396,23.776884,146.18,146.12,23.952]
[1728837584603,6.8418,146.16,146.12,23.952]
[1728837585697,6.8418,146.16,146.09,11.37464538]
[1728837585698,6.8423,146.15,146.1,1.36849495]
[1728837585903,6.8423,146.15,146.11,6.844]
[1728837588201,6.8428,146.14,146.09,17.1122]
[1728837589178,6.8428,146.14,146.09,23.9569]
[1728837597201,6.8428,146.14,146.09,17.1122]
[1728837597403,6.8428,146.14,146.1,6.8444]
[1728837601709,6.8428,146.14,146.1,8.21308968]
[1728837601906,23.776884,146.18,146.1,1.36868958]
[1728837602107,6.8419,146.16,146.12,6.8435]
[1728837602423,6.8419,146.16,146.13,1.36849178]
[1728837603625,6.8409,146.18,146.13,18.47619178]
[1728837604421,6.8409,146.18,146.13,25.31919178]
[1728837607329,16.3355,146.19,146.13,1.36849178]
[1728837607515,16.3355,146.19,146.1,17.1109]
[1728837607516,23.776884,146.18,146.11,20.0]
[1728837607697,23.776884,146.18,146.1,17.1109]
[1728837608096,6.8419,146.16,146.11,6.8438]
[1728837608719,6.8414,146.17,146.12,1.36848446]
[1728837608903,30.618084,146.18,146.13,6.8431]
[1728837609103,30.618084,146.18,146.13,8.21157533]
[1728837609608,23.776884,146.18,146.13,8.21157533]
[1728837609925,6.8414,146.17,146.13,8.21157533]
[1728837610225,16.3355,146.19,146.14,6.8425]
[1728837610521,6.841,146.18,146.14,6.8425]
[1728837611096,6.841,146.18,146.15,1.36827484]
[1728837611714,6.841,146.18,146.14,6.8425]
[1728837613626,23.176,146.19,146.15,1.3682746]
[1728837614433,6.8405,146.19,146.15,1.3682746]
[1728837615300,7.6678983,146.2,146.15,8.2100746]
[1728837615504,7.6678983,146.2,146.15,6.8418]
[1728837615720,7.6678983,146.2,146.16,6.8418]
[1728837615911,7.6678983,146.2,146.16,8.20991469]
[1728837616119,0.8276983,146.2,146.16,1.36811469]
[1728837616431,0.8276983,146.2,146.16,29.84686007]
[1728837616609,0.8276983,146.2,146.18,6.8405]
[1728837616810,0.8276983,146.2,146.19,8.20828891]
[1728837617523,0.8276983,146.2,146.19,23.35258891]
[1728837618238,0.8276983,146.2,146.19,43.35258891]
[1728837619016,0.8276983,146.2,146.19,54.72723429]
[1728837621128,0.8276983,146.2,146.19,78.50411829]
[1728837621636,0.8276983,146.34,146.27,6.8364]
[1728837621836,0.8276983,146.34,146.26,17.0924]
[1728837621837,6.8344,146.32,146.28,1.36701566]
[1728837622037,0.8276983,146.34,146.29,6.8356]
[1728837622224,0.8276983,146.34,146.27,6.8366]
[1728837622423,6.8344,146.32,146.27,6.8365]
[1728837622827,6.8348,146.31,146.26,23.9294]
[1728837623138,6.8348,146.31,146.27,6.8366]
[1728837623342,6.8348,146.31,146.26,17.0924]
[1728837623343,6.8352,146.3,146.26,18.45955103]
[1728837623540,6.8352,146.3,146.26,17.0924]
[1728837624412,22.2114,146.31,146.26,23.9294]
[1728837624609,6.8357,146.29,146.25,6.8375]
[1728837624829,15.3766,146.31,146.26,1.36720323]
[1728837625540,15.3766,146.31,146.25,6.8375]
[1728837625849,6.8356,146.3,146.25,6.8375]
[1728837626055,6.8356,146.3,146.26,1.36720302]
[1728837626365,6.8356,146.3,146.25,6.8375]
[1728837626526,6.8367,146.27,146.23,17.0958]
[1728837626952,6.8367,146.27,146.23,23.9343]
[1728837627137,6.8367,146.27,146.24,1.36747521]
[1728837627342,6.8367,146.27,146.23,17.0958]
[1728837629556,6.8367,146.27,146.23,18.46327555]
[1728837630159,6.8367,146.27,146.23,17.0958]
[1728837630732,6.8367,146.27,146.23,18.46327297]
[1728837630935,6.8367,146.27,146.23,17.0958]
[1728837631129,6.8372,146.26,146.22,6.8389]
[1728837631337,23.776884,146.27,146.2,23.9391]
[1728837631544,6.8381,146.24,146.21,1.36764629]
[1728837631772,6.8381,146.24,146.2,23.9391]
[1728837632360,6.8377,146.25,146.21,1.36771503]
[1728837634450,6.8372,146.26,146.21,8.20711503]
[1728837634866,15.3766,146.31,146.26,17.0919]
[1728837635089,15.0197,146.35,146.26,17.0919]
[1728837635266,15.0197,146.35,146.27,1.36720084]
[1728837635670,21.8528,146.35,146.3,6.8352]
[1728837636180,15.0197,146.35,146.29,1.36686902]
[1728837636380,21.8526,146.35,146.29,8.20216902]
[1728837636869,21.8526,146.35,146.29,6.8353]
[1728837637572,21.8526,146.35,146.3,1.3668691]
[1728837638077,7.6612983,146.34,146.3,1.36686821]
[1728837638271,0.8276983,146.34,146.3,6.8348]
[1728837639765,0.8276983,146.34,146.31,1.36678778]
[1728837639966,0.8276983,146.34,146.28,17.0896]
[1728837640171,0.8276983,146.34,146.3,6.8352]
[1728837640354,0.8276983,146.34,146.3,17.0874]
[1728837640567,0.8276983,146.34,146.31,6.8346]
[1728837641071,0.8276983,146.34,146.32,6.8342]
[1728837641463,0.8276983,146.34,146.3,17.0874]
[1728837641666,7.6611983,146.34,146.3,17.0874]
[1728837641888,0.8276983,146.34,146.3,23.9226]
[1728837642188,0.8276983,146.34,146.3,25.28938632]
[1728837642963,0.8276983,146.34,146.31,1.36678379]
[1728837643163,0.8276983,146.34,146.31,6.8347]
[1728837643582,0.8276983,146.34,146.31,8.20139136]
[1728837643784,0.8276983,146.34,146.31,6.8347]
[1728837645179,0.8276983,146.34,146.31,8.20139988]
[1728837646169,6.8339,146.33,146.28,6.836]
[1728837646371,7.6610983,146.34,146.29,6.8353]
[1728837646580,7.6610983,146.34,146.3,1.36683063]
[1728837647162,7.6610983,146.34,146.29,6.8353]
[1728837647881,7.6610983,146.34,146.3,1.36686977]
[1728837648485,7.6610983,146.34,146.29,6.8353]
[1728837648881,7.6610983,146.34,146.3,1.3668693]
[1728837649197,6.8339,146.33,146.28,6.8361]
[1728837650979,6.8339,146.33,146.29,1.3668684]
[1728837651183,0.8276983,146.34,146.28,6.8361]
[1728837651688,0.8276983,146.34,146.33,26.8338]
[1728837651898,0.8276983,146.34,146.33,51.97678553]
[1728837652206,0.8276983,146.34,146.33,50.610684]
[1728837652488,0.8276983,146.34,146.33,51.97667318]
[1728837652862,0.8276983,146.34,146.33,50.610684]
[1728837653489,0.8276983,146.34,146.33,26.8338]
[1728837653897,0.8276983,146.34,146.33,6.8338]
[1728837654894,0.8276983,146.34,146.33,8.20011285]
[1728837655100,0.8276983,146.34,146.33,6.8338]
[1728837655389,0.8276983,146.34,146.33,8.20018284]
[1728837656070,0.8276983,146.34,146.33,6.8338]
[1728837656792,0.8276983,146.34,146.33,8.20017834]
[1728837656997,0.8276983,146.34,146.33,6.8338]
[1728837657302,0.8276983,146.34,146.33,8.20018017]
[1728837659679,0.8276983,146.34,146.33,8.20017743]
[1728837659883,0.8276983,146.34,146.33,26.8338]
[1728837661493,0.8276983,146.34,146.33,65.845384]
[1728837661873,0.8276983,146.34,146.33,42.0685]
[1728837662906,0.8276983,146.34,146.33,26.8338]
[1728837663483,0.8276983,146.34,146.33,6.8338]
[1728837667800,0.8276983,146.34,146.33,26.8338]
[1728837668181,0.8276983,146.34,146.33,28.20000694]
[1728837669503,0.8276983,146.34,146.33,26.8338]
[1728837671214,0.8276983,146.34,146.33,6.8338]
[1728837671415,0.8276983,146.34,146.31,17.0862]
[1728837671416,0.8276983,146.34,146.32,6.8342]
[1728837672189,0.8276983,146.34,146.31,17.0862]
[1728837672398,0.8276983,146.34,146.33,6.8338]
[1728837673319,0.8276983,146.34,146.31,23.9208]
[1728837673512,0.8276983,146.34,146.31,17.0862]
[1728837673684,7.6610983,146.34,146.28,51.2695]
[1728837674088,23.776884,146.33,146.28,17.0898]
[1728837674287,30.610884,146.33,146.28,17.0898]
[1728837674486,23.776884,146.33,146.28,17.0898]
[1728837674720,6.8344,146.32,146.28,17.0898]
[1728837675010,7.6613983,146.34,146.29,6.8355]
[1728837675204,30.610884,146.33,146.29,6.8355]
[1728837675593,30.610884,146.33,146.28,23.9259]
[1728837675996,30.610884,146.33,146.29,1.36693621]
[1728837676403,30.610884,146.33,146.29,8.20263621]
[1728837677323,30.610884,146.33,146.29,6.8357]
[1728837677616,6.8342,146.33,146.3,1.366945]
[1728837678214,7.6610983,146.34,146.3,1.366945]
[1728837678429,7.6610983,146.34,146.29,6.8355]
[1728837678732,6.8339,146.33,146.29,6.8355]
[1728837679210,6.8339,146.33,146.28,6.8361]
[1728837679823,0.5820288,146.33,146.28,6.8361]
[1728837680040,0.5820288,146.33,146.27,17.0909]
[1728837680041,6.8344,146.32,146.27,23.9274]
[1728837681222,7.4159288,146.33,146.28,8.20300267]
[1728837681432,7.4159288,146.33,146.29,6.8356]
[1728837681920,7.4159288,146.33,146.28,8.20300267]
[1728837682433,6.8344,146.32,146.27,23.9274]
[1728837683309,6.8344,146.32,146.28,8.20300378]
[1728837684103,6.8344,146.32,146.28,6.836]
[1728837684310,6.8344,146.32,146.29,1.36700414]
[1728837684529,0.5820288,146.33,146.27,23.9275]
[1728837684705,23.776884,146.32,146.22,22.65656065]
[1728837685031,6.8362,146.28,146.24,17.0944]
[1728837685526,23.776884,146.32,146.24,17.0944]
[1728837685733,6.8362,146.28,146.24,23.9321]
[1728837687528,23.776884,146.29,146.25,1.36731285]
[1728837688109,23.776884,146.29,146.25,8.20471285]
[1728837688307,23.776884,146.29,146.25,6.8374]
[1728837688837,30.612684,146.29,146.24,23.9323]
[1728837689438,6.8362,146.28,146.24,23.9323]
[1728837689616,6.8362,146.28,146.24,17.0944]
[1728837689819,6.8367,146.27,146.24,17.0944]
[1728837690222,6.8371,146.26,146.22,6.8388]
[1728837690427,6.8386,146.23,146.18,39.4925]
[1728837690730,6.8381,146.24,146.19,6.84]
[1728837690920,6.8385,146.23,146.18,23.9423]
[1728837691312,22.1496,146.23,146.18,23.9423]
[1728837691637,22.1496,146.23,146.18,17.1016]
[1728837691806,22.1496,146.23,146.19,6.8403]
[1728837693618,22.1496,146.23,146.19,8.20817619]
[1728837694331,6.8377,146.25,146.2,6.8395]
[1728837694535,23.776884,146.24,146.21,1.36774098]
[1728837695017,23.776884,146.24,146.2,6.8395]
[1728837696039,30.614884,146.24,146.2,6.8395]
[1728837697013,6.8375,146.26,146.21,8.20719313]
[1728837697210,6.8376,146.25,146.21,8.20719313]
[1728837697415,6.8376,146.25,146.21,6.8394]
[1728837697638,6.8376,146.25,146.2,23.9392]
[1728837698642,6.8376,146.25,146.21,8.2071373]
[1728837699448,23.776884,146.26,146.23,6.8385]
[1728837699749,15.7768,146.27,146.24,8.20551315]
[1728837699928,6.0826,146.29,146.24,1.36761315]
[1728837700248,6.8362,146.28,146.24,23.9325]
[1728837700417,6.8362,146.28,146.24,17.0946]
[1728837701645,6.8377,146.25,146.21,23.9373]
[1728837701835,23.776884,146.28,146.15,20.0]
[1728837702027,6.8384,146.24,146.19,6.8402]
[1728837702528,6.8384,146.24,146.2,6.8398]
[1728837704051,40.867884,146.28,146.2,6.8398]
[1728837704256,6.8377,146.25,146.21,1.36773976]
[1728837705245,6.8377,146.25,146.2,6.8398]
[1728837706355,6.8377,146.25,146.21,1.36773932]
[1728837706541,6.8377,146.25,146.2,6.8398]
[1728837706939,6.8377,146.25,146.21,1.3677406]
[1728837708038,6.8377,146.25,146.2,6.8398]
[1728837708244,23.776884,146.25,146.21,8.20704102]
[1728837708641,30.614484,146.25,146.21,8.20704102]
[1728837710460,30.614484,146.25,146.21,6.8393]
[1728837710957,30.614484,146.25,146.21,8.2070416]
[1728837711882,23.776884,146.25,146.22,6.8388]
[1728837712755,6.0826,146.29,146.22,17.0971]
[1728837712938,6.8372,146.26,146.22,23.9359]
[1728837713135,6.0826,146.29,146.17,34.2047]
[1728837713136,6.8377,146.25,146.21,6.8393]
[1728837715856,23.776884,146.25,146.21,6.8393]